[Event "Swedish Championship 2022"]
[Site "Uppsala"]
[Date "2022.07.08"]
[Round "7.4"]
[White "Seo, Jung Min"]
[Black "Hector, Jonny"]
[Result "1/2-1/2"]
[ECO "C84"]
[WhiteElo "2492"]
[BlackElo "2441"]
[Annotator "TA"]
[PlyCount "144"]
[EventDate "2022.07.01"]
[EventType "tourn"]
[EventCountry "SWE"]
[SourceTitle "playchess.com"]
[Source "ChessBase"]
[SourceQuality "1"]
[TimeControl "40/5400+30:1800+30"]

{[%evp 13,144,46,49,49,53,59,56,53,56,25,27,24,16,14,35,36,34,18,63,25,32,17,47,24,15,28,31,25,31,16,16,16,53,39,85,0,0,0,0,0,0,0,0,0,39,36,44,42,39,25,32,32,33,32,39,33,40,31,36,27,33,31,47,33,40,33,69,38,64,50,56,31,28,35,50,41,79,79,79,79,79,79,79,79,575,571,560,116,135,135,135,135,135,135,135,110,135,103,103,0,135,77,77,77,77,77,77,8,8,8,8,8,8,8,8,8,8,8,11,8,8,8,8,8,8,8,8,8,12,8,8,8,8]} 1. e4 {[%emt 0:00:02]} e5 {[%emt 0:00:09]} 2. Nf3 {[%emt 0:00:07]} Nc6 {[%emt 0:00:08]} 3. Bb5 {[%emt 0:00:02]} a6 {[%emt 0:00:32]} 4. Ba4 {[%emt 0:00:03]} Nf6 {[%emt 0:00:21]} 5. O-O {[%emt 0:00:23]} Nxe4 {[%emt 0:00:27]} 6. d4 {[%emt 0:00:16]} Be7 {[%emt 0:00:45]} 7. Re1 {[%emt 0:03:35]} b5 {[%emt 0:00:58]} 8. Rxe4 {[%emt 0:00:24] C84: Closed Ruy Lopez: Unusual White 6th moves.} d5 {[%emt 0:00:13] [#]} 9. Nxe5 $1 {[%emt 0:00:21]} Nxe5 {[%emt 0:00:13]} 10. Rxe5 {[%emt 0:00:02] And now Bb3 would win. White is slightly better.} bxa4 {[%emt 0:00:12]} 11. b3 {[%emt 0:15:54] With the idea Ba3.} O-O {[%emt 0:01:14]} 12. Ba3 {[%emt 0:02:52]} (12. bxa4 Bf6 13. Re1 Re8 $11) 12... Bxa3 {[%emt 0:00:57]} 13. Nxa3 {[%emt 0:00:03]} Qd6 {[%emt 0:01:05] Hoping for ...f6.} 14. Nb1 $1 {[%emt 0:00:14]} axb3 {[%emt 0:06:53]} 15. axb3 {[%emt 0:00:15]} c5 {[%emt 0:00:25]} 16. Nc3 {[%emt 0:01:20]} Bb7 {[%emt 0:04:47]} 17. Na4 {[%emt 0:03:58] [#]} Rac8 $146 {[%emt 0:14:57]} ({Predecessor:} 17... cxd4 18. Qxd4 Rac8 19. c3 Rc7 20. h3 h6 21. Rae1 a5 22. R1e3 Rcc8 23. Nb6 Rcd8 {½-½ (42) Fedorchuk,S (2621)-Arnaudov,P (2478) Germany 2020}) 18. Re2 {[%emt 0:02:17]} (18. Nxc5 $2 Rxc5 19. Qd3 Rc7 $19) 18... cxd4 {[%emt 0:08:14]} 19. Qxd4 {[%emt 0:01:25]} Rfe8 {[%emt 0:07:09]} 20. Rxe8+ {[%emt 0:06:14]} Rxe8 {[%emt 0:00:03]} 21. h3 {[%emt 0:00:35]} h5 {[%emt 0:12:29]} 22. Nc5 {[%emt 0:05:06]} Bc8 {[%emt 0:05:58]} 23. c4 {[%emt 0:01:05]} Re5 {[%emt 0:00:59]} (23... Qg6 $14 {is superior.}) 24. Nd3 {[%emt 0:05:34] White is more active.} (24. Rd1 $1 $16) 24... Re4 $1 $11 {[%emt 0:00:58]} 25. Qxd5 {[%emt 0:00:05]} Qxd5 {[%emt 0:00:21]} 26. cxd5 {[%emt 0:00:03][%mdl 4096] Endgame KRB-KRN} Rd4 {[%emt 0:00:15][%csl LRd3,LRd5]} 27. Nc5 {[%emt 0:00:13]} Rxd5 {[%emt 0:00:24]} 28. Nxa6 {[%emt 0:00:04][%cal Bc5a6,Ba6c7,Bc7d5,Bd5f4,Bf4h5,Bh5g3,Bg3f1,Bf1e3,Be3c4,Bc4b6][%mdl 32]} Rb5 {[%emt 0:05:57]} 29. Nc7 {[%emt 0:01:32]} Rb7 {[%emt 0:00:24]} 30. Nd5 {[%emt 0:00:09] Strongly threatening Ra8.} Kh7 {[%emt 0:03:59]} 31. Nf4 {[%emt 0:00:38]} Rxb3 {[%emt 0:01:56]} 32. Nxh5 {[%emt 0:01:27]} Bb7 {[%emt 0:01:04]} 33. Re1 {[%emt 0:02:21]} Rb4 {[%emt 0:03:14]} 34. Ng3 {[%emt 0:01:15]} g6 {[%emt 0:03:15]} 35. f3 {[%emt 0:00:59]} Kg7 {[%emt 0:01:28]} 36. Nf1 {[%emt 0:02:22]} Rb2 {[%emt 0:01:08]} 37. Ne3 {[%emt 0:00:25]} Ba8 {[%emt 0:02:00]} 38. Rd1 {[%emt 0:00:47]} Re2 {[%emt 0:02:09]} 39. Nc4 {[%emt 0:00:34]} Bc6 {[%emt 0:00:57]} 40. Rd4 {[%emt 0:02:11]} Ba4 {[%emt 0:03:46]} 41. Nb6 {[%emt 0:31:32]} Bb3 {[%emt 0:32:01]} 42. Nc8 {[%emt 0:01:26]} Rc2 {[%emt 0:01:44]} 43. Nd6 {[%emt 0:02:40]} Rc1+ {[%emt 0:04:47]} 44. Kf2 {[%emt 0:01:20]} Rd1 {[%emt 0:00:29]} 45. Rxd1 {[%emt 0:00:16]} Bxd1 $16 {[%emt 0:00:07] [#] KB-KN} 46. h4 $1 {[%emt 0:00:09]} Ba4 {[%emt 0:00:52]} 47. Ke3 {[%emt 0:00:39]} Kf6 {[%emt 0:00:00]} 48. Kf4 {[%emt 0:00:00]} Bc2 $2 {[%emt 0:00:00][%mdl 8192]} (48... Ke7 $16) 49. Ne4+ $18 {[%emt 0:00:00]} Kg7 {[%emt 0:00:00] [#]} 50. Kg5 {[%emt 0:00:00] Prevents f6+.} (50. Ke5 $1 $18 {and the rest is easy.} Bd1 51. Nf6) 50... Bd3 {[%emt 0:00:00]} 51. Nf6 {[%emt 0:00:00]} Be2 {[%emt 0:00:00]} 52. f4 {[%emt 0:00:00]} Bd3 {[%emt 0:00:00]} 53. g3 {[%emt 0:00:00]} Bc2 {[%emt 0:00:00]} 54. g4 {[%emt 0:00:00]} Bb1 {[%emt 0:00:00]} 55. Ne8+ {[%emt 0:00:00]} Kf8 {[%emt 0:00:00]} 56. Nf6 {[%emt 0:00:00]} Kg7 $1 {[%emt 0:00:00]} 57. f5 {[%emt 0:00:00]} (57. h5 $142 {White wants to mate with h6+.} gxh5 58. Nxh5+ (58. gxh5 Bd3 $16) 58... Kg8 59. Ng3) 57... gxf5 $16 {[%emt 0:00:00]} 58. gxf5 {[%emt 0:00:00]} Bc2 {[%emt 0:00:00]} 59. Ne8+ {[%emt 0:00:00]} ({Much less strong is} 59. h5 Bd1 60. Ne4 Bf3) 59... Kh7 {[%emt 0:00:00]} 60. Nd6 {[%emt 0:00:00]} (60. f6 $16) 60... f6+ $1 $11 {[%emt 0:00:00] The position is equal.} 61. Kxf6 {[%emt 0:00:00] Intending Kg5 and mate.} Kh6 {[%emt 0:00:00]} 62. Ke7 {[%emt 0:00:00]} Kh5 {[%emt 0:00:00]} 63. f6 {[%emt 0:00:00] f7 would kill now.} Bg6 {[%emt 0:00:00] [#]} (63... Kxh4 {leads to mate.} 64. f7 Kh3 65. f8=Q Kg3 66. Qg7+ Kf4 67. Qd4+ Kg3 68. Qc3+ Kh4 69. Qxc2) 64. Nf5 $1 {[%emt 0:00:00] White threatens f7 and mate.} Kg4 {[%emt 0:00:00]} 65. Nh6+ {[%emt 0:00:00]} Kxh4 {[%emt 0:00:00]} 66. Kf8 {[%emt 0:00:00]} Kg5 {[%emt 0:00:00][%csl LRf6,LRh6]} 67. Kg7 {[%emt 0:00:00]} Bh5 {[%emt 0:00:00]} 68. Nf7+ {[%emt 0:00:00]} Kf5 {[%emt 0:00:00]} 69. Nd6+ {[%emt 0:00:00]} Ke5 {[%emt 0:01:30]} 70. Nc4+ {[%emt 0:00:00]} Kf4 {[%emt 0:02:29]} 71. f7 {[%emt 0:00:00]} Bxf7 $1 {[%emt 0:00:07]} 72. Nd6 {[%emt 0:00:00]} Ba2 {[%emt 0:00:10] Blacks defense is rewarded with a draw.  Weighted Error Value: White=0.29 (precise) /Black=0.22 (precise)} 1/2-1/2

[Event "Swedish Championship 2022"]
[Site "Uppsala"]
[Date "2022.07.08"]
[Round "7.5"]
[White "Smith, Axel"]
[Black "Blomqvist, Erik"]
[Result "1-0"]
[ECO "A22"]
[WhiteElo "2417"]
[BlackElo "2521"]
[Annotator "TA"]
[PlyCount "173"]
[EventDate "2022.07.01"]
[EventType "tourn"]
[EventCountry "SWE"]
[SourceTitle "playchess.com"]
[Source "ChessBase"]
[SourceQuality "1"]
[TimeControl "40/5400+30:1800+30"]

{[%evp 9,173,71,65,77,66,9,10,17,18,0,3,0,0,-16,1,-2,0,0,-9,-5,-2,-7,-3,-8,-4,-11,0,-19,-21,-41,0,-9,0,-8,-8,-15,-20,-20,-20,-24,0,0,0,0,0,0,0,0,0,0,0,0,8,0,0,0,0,0,0,-7,0,-2,10,8,8,3,8,8,8,0,0,0,0,0,0,0,0,0,0,0,0,0,0,0,0,0,0,0,0,0,0,0,0,0,0,0,105,0,8,3,22,0,0,0,0,0,0,0,0,0,0,0,0,0,22,16,26,27,131,131,124,119,235,0,154,0,362,362,245,245,362,362,362,362,362,245,8,8,362,8,836,362,1091,1014,954,910,545,362,362,362,1223,1224,1183,1183,1177,1184,1214,362,362,362,1393,1349,1167,943,29985,29986]} 1. c4 {[%emt 0:00:02]} e5 {[%emt 0:00:18]} 2. Nc3 {[%emt 0:00:02]} Nf6 {[%emt 0:00:18]} 3. Nf3 {[%emt 0:00:02]} e4 {[%emt 0:00:22]} 4. Ng5 {[%emt 0:04:37]} c6 {[%emt 0:00:23]} 5. Ngxe4 {[%emt 0:01:59]} Nxe4 {[%emt 0:00:53]} 6. Nxe4 {[%emt 0:00:01] A22: English Opening: 1...e5 2 Nc3 Nf6.} d5 {[%emt 0:00:07]} 7. Nc3 {[%emt 0:15:03]} ({White should play} 7. cxd5 $14 cxd5 8. Ng3 (8. Qa4+ $2 Bd7 $19)) 7... dxc4 $11 {[%emt 0:08:21]} 8. e3 {[%emt 0:01:04] The position is equal.} Be6 {[%emt 0:00:18]} 9. d3 {[%emt 0:01:58]} cxd3 {[%emt 0:00:26]} 10. Bxd3 {[%emt 0:00:14]} Nd7 {[%emt 0:01:28]} 11. O-O {[%emt 0:01:16] [#]} g6 $146 {[%emt 0:10:57]} ({Predecessor:} 11... Qc7 12. f4 O-O-O 13. Qc2 Nc5 14. Be2 Qb6 15. Kh1 g6 16. e4 f5 17. Be3 Qb4 {½-½ (31) Rieke,T (1970)-Tripolsky,E (2207) Germany 2016}) 12. b3 {[%emt 0:08:34]} Bg7 {[%emt 0:01:03]} 13. Bb2 {[%emt 0:00:01]} Nc5 {[%emt 0:07:22]} 14. Na4 {[%emt 0:17:34]} Bxb2 {[%emt 0:01:26]} 15. Nxb2 {[%emt 0:00:29]} Qg5 {[%emt 0:03:23]} 16. Bc4 {[%emt 0:11:10]} Rd8 {[%emt 0:07:15]} 17. Qe2 {[%emt 0:00:10]} Bf5 {[%emt 0:03:34]} 18. Rfd1 {[%emt 0:03:58]} O-O {[%emt 0:00:58]} 19. f3 {[%emt 0:08:28]} a5 {[%emt 0:12:44]} (19... b5 $5 {[%cal Rb5c4]} 20. Bd3 Bxd3 21. Nxd3 Nxd3 22. Rxd3 Rxd3 23. Qxd3 Rd8 $11) 20. Qf2 {[%emt 0:02:34]} Bc8 {[%emt 0:03:56]} (20... b5 $5 {[%cal Rb5c4]} 21. Bf1 (21. e4 Bc8 $11) 21... Bc8 $11) 21. Rxd8 {[%emt 0:03:55]} Rxd8 {[%emt 0:00:39]} 22. Rd1 {[%emt 0:00:06]} Rxd1+ {[%emt 0:01:12]} 23. Nxd1 {[%emt 0:00:02]} b5 {[%emt 0:05:35]} 24. Bf1 {[%emt 0:00:11]} Qd8 {[%emt 0:02:24]} 25. Qc2 {[%emt 0:01:22]} Qd6 {[%emt 0:00:16]} 26. Nf2 {[%emt 0:01:45]} Bf5 {[%emt 0:03:13]} 27. Qb2 {[%emt 0:04:38]} b4 {[%emt 0:03:14]} 28. Bc4 {[%emt 0:01:03]} h5 {[%emt 0:01:53]} 29. Qd4 {[%emt 0:06:21]} Qxd4 {[%emt 0:04:19]} 30. exd4 {[%emt 0:00:01][%mdl 4096] Endgame KBN-KBN} Nd7 {[%emt 0:00:08]} 31. Nd3 {[%emt 0:05:40]} Kf8 {[%emt 0:02:53]} 32. Kf2 {[%emt 0:00:01]} Ke7 {[%emt 0:01:01]} 33. Ke3 {[%emt 0:01:13]} g5 {[%emt 0:03:30]} 34. Kd2 {[%emt 0:00:28]} f6 {[%emt 0:03:25]} 35. Nb2 {[%emt 0:00:49]} c5 {[%emt 0:04:05]} 36. Bd3 {[%emt 0:00:33]} Be6 {[%emt 0:00:54]} 37. Ke3 {[%emt 0:00:08]} Kd6 {[%emt 0:01:37]} 38. Bc4 {[%emt 0:00:32]} Bf5 {[%emt 0:00:39]} 39. Bd3 {[%emt 0:00:48]} Bxd3 {[%emt 0:02:03]} 40. Nxd3 {[%emt 0:01:03]} f5 $1 {[%emt 0:01:19]} 41. Nxc5 {[%emt 0:14:47]} Nxc5 {[%emt 0:03:11]} 42. dxc5+ {[%emt 0:00:02]} Kxc5 {[%emt 0:00:14] KP-KP} 43. h4 {[%emt 0:03:51]} gxh4 {[%emt 0:00:11]} 44. Kf4 {[%emt 0:04:59]} Kd4 {[%emt 0:00:02] And now ...Kc3 would win.} 45. Kxf5 {[%emt 0:00:06]} Kc3 {[%emt 0:00:11]} 46. f4 {[%emt 0:00:14] Ke4 would kill now.} Kb2 {[%emt 0:00:05]} 47. Kg5 $1 {[%emt 0:00:15][%csl LRh4,LRh5]} Kxa2 {[%emt 0:00:15]} 48. f5 {[%emt 0:00:01]} a4 $1 {[%emt 0:00:12]} (48... Kxb3 $2 49. f6 h3 50. gxh3 $18) 49. bxa4 {[%emt 0:00:25] Threatens to win with a5. K3P-K3P} b3 {[%emt 0:00:03]} 50. f6 {[%emt 0:00:07]} b2 {[%emt 0:00:04]} 51. f7 {[%emt 0:00:02]} b1=Q {[%emt 0:00:06] ( -> ...Qf1)} 52. f8=Q {[%emt 0:00:03] Prevents Qf1. KQ-KQ} Qe4 {[%emt 0:06:04]} (52... Qd1 $1 $11 {remains equal.}) 53. Qf2+ {[%emt 0:02:27]} ({Don't play} 53. Kxh5 $6 Qxg2 54. Qf7+ Ka3 $11) (53. Qg8+ $1 $16 Kb2 54. Kxh5) 53... Kb3 {[%emt 0:00:41]} 54. Kxh5 {[%emt 0:00:24]} h3 {[%emt 0:08:59]} 55. Qg3+ {[%emt 0:03:59]} ({Don't do} 55. gxh3 $6 Qh7+ 56. Kg4 Qg6+ 57. Kf3 Qh5+ 58. Kg3 Qg6+ 59. Kh2 Kxa4 $16) 55... Kxa4 {[%emt 0:00:08]} 56. Qxh3 {[%emt 0:00:09]} Qh7+ {[%emt 0:01:10]} 57. Kg5 {[%emt 0:00:12]} (57. Kg4 $5 {[%cal Rh3h7]} Qe4+ 58. Kg3 Qe3+ 59. Kh2 Qf4+ 60. g3 $16) 57... Qg7+ {[%emt 0:00:22]} 58. Kf5 {[%emt 0:00:12]} (58. Kf4 $5 {[%cal Rh3g4]}) 58... Qf7+ {[%emt 0:00:11]} 59. Ke5 {[%emt 0:00:43] Qg4+ is the strong threat.} (59. Ke4 $5 {[%cal Rh3g4]}) 59... Qg7+ {[%emt 0:00:29]} 60. Ke4 {[%emt 0:00:14]} Qg6+ {[%emt 0:00:30]} 61. Ke3 {[%emt 0:00:09] Strongly threatening Qd7+.} Qg5+ {[%emt 0:01:34]} 62. Ke2 {[%emt 0:00:28] Black must now prevent Qd7+.} Kb5 {[%emt 0:05:35]} 63. Qb3+ {[%emt 0:01:28]} Kc6 {[%emt 0:00:18]} (63... Ka5 $1 $11) 64. Qe6+ $1 $16 {[%emt 0:01:12]} Kc7 {[%emt 0:00:07]} 65. Kf3 {[%emt 0:01:29] Hoping for g4.} Kd8 {[%emt 0:04:41]} (65... Qg7 $16 {was called for.} 66. g4 Qg5) 66. g3 $2 {[%emt 0:00:01]} (66. Qb6+ $18 Kc8 67. Qa6+ Kb8 68. Qe6) 66... Qh5+ $2 {[%emt 0:04:08]} (66... Qc1 $11) 67. g4 $2 {[%emt 0:02:16]} (67. Kf4 $1 $16 {White wants to mate with Qf6+.} Qh2 68. Qe5) 67... Qg5 $2 {[%emt 0:04:01][%mdl 8192] Against Qf6+} (67... Qh2 $11 {and Black has nothing to worry.}) 68. Ke4 $18 {[%emt 0:00:14]} Qc5 {[%emt 0:00:31]} 69. Kf4 $1 {[%emt 0:00:38] Prevents Qg5+.} Qf8+ {[%emt 0:00:25]} (69... Qf2+ $142 70. Kg5 Qg2) 70. Kg5 $1 {[%emt 0:00:41]} Qg7+ {[%emt 0:00:04] [#]} 71. Kh5 $1 {[%emt 0:00:19]} Qh7+ {[%emt 0:00:28] [#]} 72. Qh6 $1 {[%emt 0:00:23]} Qf7+ {[%emt 0:00:14]} 73. Qg6 {[%emt 0:00:05]} Qf3 $2 {[%emt 0:00:19][%mdl 8192]} (73... Qa2 $1 $11) 74. Qe6 $2 {[%emt 0:00:56]} (74. Qf5 $18 Qe2 75. Kg6) 74... Qd3 $2 {[%emt 0:01:34][%mdl 8192]} (74... Qg2 $11 75. g5 Qh2+ 76. Kg6 Qg3 77. Qf6+ Ke8 78. Qf7+ Kd8 79. Qf6+ Kc7) 75. Kh6 {[%emt 0:00:22]} (75. Qf6+ $142 Kc7 76. Qe7+ Kc8 77. g5) 75... Qh3+ {[%emt 0:00:26]} 76. Kg7 {[%emt 0:00:19]} Qg3 {[%emt 0:00:19]} 77. Kf7 {[%emt 0:01:24]} Qc7+ {[%emt 0:00:19]} 78. Kg6 {[%emt 0:00:13] Intending Qg8+ and mate.} Qc2+ {[%emt 0:00:16]} 79. Kg7 {[%emt 0:01:08]} Qc5 $2 {[%emt 0:01:03]} (79... Qg2 80. Qf6+ Ke8 81. Qg6+ Kd8) 80. Qf6+ {[%emt 0:01:02]} Kc7 {[%emt 0:00:16]} 81. g5 {[%emt 0:00:17][%cal Bg4g5,Bg5g6][%mdl 32]} Qe3 {[%emt 0:00:47]} 82. g6 {[%emt 0:00:08] Threatening mate with Kf8.} Kd7 {[%emt 0:00:12]} 83. Kh7 $2 {[%emt 0:00:31]} (83. Qf5+ Ke7 84. Kh8) 83... Qe4 {[%emt 0:00:43]} 84. Qf7+ {[%emt 0:01:28]} Kd8 $2 {[%emt 0:00:24]} (84... Kc6 85. Kg8 Kb6 86. Qf6+ Kc7) 85. Kg8 {[%emt 0:00:19]} Qh4 {[%emt 0:00:39]} 86. Qe6 {[%emt 0:00:41]} Qh6 {[%emt 0:00:24]} 87. Qf6+ {[%emt 0:00:37] Weighted Error Value: White=0.08 (flawless) /Black=0.06 (flawless)} 1-0

[Event "Swedish Championship 2022"]
[Site "Uppsala"]
[Date "2022.07.09"]
[Round "8.2"]
[White "Hillarp Persson, Tiger"]
[Black "Carlsson, Ludvig"]
[Result "1/2-1/2"]
[ECO "A07"]
[WhiteElo "2516"]
[BlackElo "2399"]
[Annotator "TA"]
[PlyCount "77"]
[EventDate "2022.07.01"]
[EventType "tourn"]
[EventCountry "SWE"]
[SourceTitle "playchess.com"]
[Source "ChessBase"]
[SourceQuality "1"]
[TimeControl "40/5400+30:1800+30"]

{[%evp 9,77,0,12,0,0,0,-7,-3,-10,-10,45,0,0,0,0,0,0,0,0,6,22,17,23,18,33,41,39,20,16,0,0,0,38,46,43,0,0,0,0,0,0,0,0,0,0,0,0,0,0,0,0,0,0,-8,-1,-12,-12,-12,-12,-39,-27,-27,-24,-25,0,0,0,-39,-4,-39]} 1. Nf3 {[%emt 0:00:05]} d5 {[%emt 0:00:18]} 2. d3 {[%emt 0:02:30]} Nc6 {[%emt 0:05:22]} 3. g3 {[%emt 0:01:24]} e5 {[%emt 0:00:27]} 4. Bg2 {[%emt 0:00:34]} Nf6 {[%emt 0:01:56]} 5. O-O {[%emt 0:00:25]} a5 {[%emt 0:05:45]} 6. Nc3 {[%emt 0:07:26] A07: Réti Opening: New York and Capablanca Systems.} h6 {[%emt 0:21:33]} 7. e4 {[%emt 0:20:55]} dxe4 {[%emt 0:02:57]} 8. dxe4 {[%emt 0:00:12]} Qxd1 {[%emt 0:03:35]} 9. Rxd1 {[%emt 0:00:10] [#] Nb5 is the strong threat.} Bd6 $146 {[%emt 0:02:12]} ({Black should play} 9... Be6 $11) ({Predecessor:} 9... Bg4 10. Be3 Nb4 11. Rd2 Bd6 12. Ne1 Bd7 13. f3 a4 14. Bf1 a3 15. b3 Ra5 {½-½ (57) Hennings,A (2445)-Portisch,F (2425) Trencianske Teplice 1981}) 10. h3 {[%emt 0:13:33]} (10. Nb5 $5 {[%cal Rd1d6]} Ke7 11. Nh4 $14 (11. Nxd6 cxd6 12. Ne1 Bd7 $14)) 10... Be6 {[%emt 0:04:59]} 11. Be3 {[%emt 0:03:52]} O-O-O {[%emt 0:11:34]} 12. a3 {[%emt 0:06:04] Prevents Bb4.} Be7 {[%emt 0:00:25]} 13. Bf1 {[%emt 0:05:01]} Rxd1 {[%emt 0:06:45]} 14. Rxd1 {[%emt 0:00:10]} Rd8 {[%emt 0:00:12]} 15. Rxd8+ {[%emt 0:01:01]} Kxd8 {[%emt 0:00:07]} 16. Bb5 {[%emt 0:07:17] Strongly threatening Bxc6.} Nd7 {[%emt 0:00:08]} 17. Bxc6 {[%emt 0:00:46]} bxc6 {[%emt 0:00:08]} 18. h4 {[%emt 0:05:29]} c5 {[%emt 0:08:21]} 19. Nd2 {[%emt 0:06:41]} c4 {[%emt 0:00:38] Against Nb3} 20. Nd5 {[%emt 0:06:05]} c6 {[%emt 0:01:06]} (20... Bxd5 $5 21. exd5 c3 22. bxc3 Nf6 $11) 21. Nxe7 {[%emt 0:00:12]} Kxe7 $14 {[%emt 0:00:07][%mdl 4096] Endgame KBN-KBN} 22. Nb1 {[%emt 0:02:01]} Bg4 {[%emt 0:01:18]} 23. Bd2 {[%emt 0:04:42]} Bf3 {[%emt 0:00:10]} 24. Bxa5 {[%emt 0:00:18]} Bxe4 {[%emt 0:00:30]} 25. Nd2 {[%emt 0:00:09][%csl LRc4,LRe4]} Bxc2 {[%emt 0:00:37]} 26. Nxc4 {[%emt 0:00:05]} Ke6 {[%emt 0:00:34]} 27. f3 {[%emt 0:00:41]} f5 {[%emt 0:01:51]} 28. Kf2 {[%emt 0:01:14]} Bd1 {[%emt 0:07:56]} 29. Bc3 {[%emt 0:01:20]} g5 {[%emt 0:00:35]} 30. hxg5 {[%emt 0:02:24]} hxg5 {[%emt 0:00:06]} 31. Ne3 {[%emt 0:01:30]} Bb3 {[%emt 0:00:07]} 32. f4 {[%emt 0:00:56]} exf4 {[%emt 0:02:04]} 33. gxf4 {[%emt 0:00:08]} g4 {[%emt 0:00:14]} 34. Nf1 {[%emt 0:00:50]} Nc5 {[%emt 0:01:18]} 35. Ng3 {[%emt 0:00:40]} Bc2 {[%emt 0:00:49]} 36. Ke3 {[%emt 0:00:23]} Ne4 {[%emt 0:03:45]} 37. Nxe4 {[%emt 0:00:27]} Bxe4 {[%emt 0:00:05]} 38. Kf2 {[%emt 0:00:29]} Kd7 {[%emt 0:00:07]} 39. Kg3 {[%emt 0:00:21] Weighted Error Value: White=0.08 (flawless) /Black=0.08 (flawless)} 1/2-1/2